bitfinex/quotes_BTCUSD_20240918
["timestamp","ask_amount","ask_price","bid_price","bid_amount"]
[1726663663286,0.002644,60012.0,60011.0,0.510428]
[1726663664025,0.002644,60012.0,60011.0,0.8437]
[1726663664271,0.01580905,60012.0,60011.0,0.8437]
[1726663664477,0.01580905,60012.0,60011.0,0.99750653]
[1726663664478,0.002644,60012.0,60011.0,0.99750653]
[1726663669273,0.002644,60012.0,60011.0,1.33077853]
[1726663680573,0.002644,60012.0,60011.0,0.99750653]
[1726663682000,0.002644,60012.0,60011.0,0.94461551]
[1726663685570,0.002644,60012.0,60011.0,1.53514118]
[1726663685782,0.408746,60034.0,60031.0,0.16658]
[1726663685783,0.0756,60034.0,60031.0,0.16658]
[1726663685986,0.0756,60034.0,60032.0,0.166577]
[1726663686198,0.0756,60034.0,60031.0,0.16658]
[1726663686199,0.01339459,60032.0,60031.0,0.16658]
[1726663686397,0.15805367,60033.0,60030.0,0.004]
[1726663686608,0.832902,60031.0,60030.0,0.004]
[1726663686776,0.75289467,60031.0,60030.0,0.004]
[1726663687353,0.75289467,60031.0,60029.0,0.004]
[1726663687354,0.499749,60030.0,60029.0,0.004]
[1726663687595,0.66280267,60030.0,60029.0,0.004]
[1726663689227,0.67563993,60030.0,60029.0,0.004]
[1726663689463,0.67763993,60030.0,60029.0,0.004]
[1726663690121,0.70377777,60030.0,60029.0,0.004]
[1726663690783,0.70377777,60030.0,60020.0,0.1537355]
[1726663690784,0.20402877,60030.0,60024.0,0.004]
[1726663690961,0.20402877,60030.0,60008.0,0.04967005]
[1726663690962,0.16663,60013.0,60012.0,0.004]
[1726663691163,0.123,60022.0,60013.0,1.00370009]
[1726663691164,0.166627,60014.0,60013.0,1.00370009]
[1726663691380,0.499891,60013.0,60012.0,0.004]
[1726663692026,0.50049735,60013.0,60012.0,0.004]
[1726663692234,0.499915,60010.0,60009.0,0.004]
[1726663692455,0.499915,60010.0,60006.0,0.000821]
[1726663692456,0.833235,60007.0,60006.0,0.000821]
[1726663692680,0.99628867,60007.0,60006.0,0.000821]
[1726663692907,0.99679455,60007.0,60006.0,0.000821]
[1726663693124,0.99679455,60007.0,60006.0,0.003341]
[1726663693764,0.99679455,60007.0,60006.0,0.005341]
[1726663695116,0.99679455,60007.0,60006.0,0.003341]
[1726663695360,1.50682405,60007.0,60006.0,0.003341]
[1726663695588,1.50682405,60007.0,60006.0,0.002821]
[1726663695589,1.35308855,60007.0,60006.0,0.002821]
[1726663695852,1.78638255,60007.0,60006.0,0.002821]
[1726663696072,1.45308855,60007.0,60006.0,0.002821]
[1726663696294,1.45308855,60007.0,60006.0,0.000821]
[1726663696764,1.46308855,60007.0,60006.0,0.001821]
[1726663697181,1.46308855,60007.0,60006.0,0.000821]
[1726663697182,1.45294269,60007.0,60006.0,0.000821]
[1726663697391,1.45308855,60007.0,60006.0,0.000821]
[1726663698656,1.46008855,60007.0,60006.0,0.001821]
[1726663698889,1.45308855,60007.0,60006.0,0.000821]
[1726663699346,1.46308855,60007.0,60006.0,0.001821]
[1726663699614,1.45308855,60007.0,60006.0,0.000821]
[1726663700033,1.46008855,60007.0,60006.0,0.001821]
[1726663700235,1.45308855,60007.0,60006.0,0.000821]
[1726663700856,1.46582604,60007.0,60006.0,0.000821]
[1726663701907,1.47482604,60007.0,60006.0,0.001821]
[1726663702154,1.47482604,60007.0,60006.0,0.000821]
[1726663702155,1.46582604,60007.0,60006.0,0.000821]
[1726663702580,1.47282604,60007.0,60006.0,0.001821]
[1726663703001,1.46582604,60007.0,60006.0,0.000821]
[1726663703237,1.47482604,60007.0,60006.0,0.001821]
[1726663705085,1.48182604,60007.0,60006.0,0.002821]
[1726663705498,1.46582604,60007.0,60006.0,0.000821]
[1726663707243,1.47282604,60007.0,60006.0,0.001821]
[1726663710553,1.90122004,60007.0,60006.0,0.001821]
[1726663711463,1.98232004,60007.0,60006.0,0.001821]
[1726663712395,2.34561404,60007.0,60006.0,0.001821]
[1726663712606,2.34546818,60007.0,60006.0,0.001821]
[1726663712832,2.01217418,60007.0,60006.0,0.001821]
[1726663713290,1.98217418,60007.0,60006.0,0.001821]
[1726663713487,1.64888018,60007.0,60006.0,0.001821]
[1726663716275,1.6490065,60007.0,60006.0,0.001821]
[1726663718752,1.67515603,60007.0,60006.0,0.001821]
[1726663720327,1.67500178,60007.0,60006.0,0.001821]
[1726663724071,1.67513089,60007.0,60006.0,0.001821]
[1726663730654,2.00842489,60007.0,60006.0,0.001821]
[1726663731105,1.67513089,60007.0,60006.0,0.001821]
[1726663731977,2.00842489,60007.0,60006.0,0.001821]
[1726663732208,1.67513089,60007.0,60006.0,0.001821]
[1726663732418,2.00842489,60007.0,60006.0,0.001821]
[1726663733991,2.00830695,60007.0,60006.0,0.001821]
[1726663734368,2.42760095,60007.0,60006.0,0.001821]
[1726663734496,2.50311016,60007.0,60006.0,0.001821]
[1726663734750,2.50311016,60007.0,59996.0,7.2e-07]
[1726663734751,1.754375,59997.0,59996.0,7.2e-07]
[1726663734989,2.48251417,59997.0,59996.0,7.2e-07]
[1726663735214,2.16197471,59997.0,59996.0,7.2e-07]
[1726663737534,2.1622706,59997.0,59996.0,7.2e-07]
[1726663737750,2.20242557,59997.0,59996.0,0.00100072]
[1726663738214,2.18842557,59997.0,59996.0,7.2e-07]
[1726663738433,2.19861977,59997.0,59996.0,7.2e-07]
[1726663738878,2.21261977,59997.0,59996.0,0.00100072]
[1726663740516,2.19861977,59997.0,59996.0,7.2e-07]
[1726663741435,2.21261977,59997.0,59996.0,0.00100072]
[1726663742133,2.19861977,59997.0,59996.0,7.2e-07]
[1726663743927,2.21261977,59997.0,59996.0,0.00100072]
[1726663744146,2.1724648,59997.0,59996.0,7.2e-07]
[1726663744596,2.1864648,59997.0,59996.0,0.00100072]
[1726663748858,2.0327293,59997.0,59996.0,0.00100072]
[1726663749313,2.1864648,59997.0,59996.0,0.00100072]
[1726663750233,1.9034293,59997.0,59996.0,0.00100072]
[1726663750469,1.1465351,59997.0,59996.0,0.00100072]
[1726663750712,0.69028134,59997.0,59996.0,0.00100072]
[1726663750928,0.35693134,59997.0,59996.0,0.00100072]
[1726663751403,0.69028134,59997.0,59996.0,0.00100072]
[1726663752083,0.79028134,59997.0,59996.0,0.00100072]
[1726663752306,0.67628134,59997.0,59996.0,7.2e-07]
[1726663753000,1.00963134,59997.0,59996.0,7.2e-07]
[1726663753443,0.17625634,59997.0,59996.0,7.2e-07]
[1726663753680,0.34293134,59997.0,59996.0,7.2e-07]
[1726663754606,0.67628134,59997.0,59996.0,7.2e-07]
[1726663755277,0.67628134,59997.0,59996.0,0.00400072]
[1726663755278,0.01320267,59997.0,59996.0,0.00400072]
[1726663756463,0.17987767,59997.0,59996.0,0.00400072]
[1726663756688,0.51322767,59997.0,59996.0,0.00400072]
[1726663757550,0.17987767,59997.0,59996.0,0.00400072]
[1726663758662,0.51322767,59997.0,59996.0,0.00400072]
[1726663759337,0.84657767,59997.0,59996.0,0.00400072]
[1726663759789,0.51322767,59997.0,59996.0,0.00400072]
[1726663761197,0.51322767,59997.0,59996.0,7.2e-07]
[1726663761859,0.51322767,59997.0,59996.0,0.00400072]
[1726663762509,0.51322767,59997.0,59996.0,7.2e-07]
[1726663762938,1.00963134,59997.0,59996.0,7.2e-07]
[1726663763357,1.00963134,59997.0,59996.0,0.00400072]
[1726663764564,1.00963134,59997.0,59996.0,7.2e-07]
[1726663765032,1.34298134,59997.0,59996.0,7.2e-07]
[1726663765257,1.00963134,59997.0,59996.0,7.2e-07]
[1726663765932,1.00963134,59997.0,59996.0,0.00400072]
[1726663773778,0.67628134,59997.0,59996.0,0.00400072]
[1726663778250,0.01320267,59997.0,59996.0,0.10499449]
[1726663778472,0.01320267,59997.0,59996.0,0.60502649]
[1726663778697,0.101642,60006.0,59996.0,0.60502649]
[1726663778698,0.166661,60002.0,60001.0,0.004]
[1726663778920,0.32971467,60002.0,60001.0,0.0871]
[1726663780563,0.3558639,60002.0,60001.0,0.0871]
[1726663780777,0.3558639,60002.0,60001.0,0.0891]
[1726663782278,0.35633185,60002.0,60001.0,0.0891]
[1726663787854,0.33018262,60002.0,60001.0,0.0891]
[1726663789169,0.66350462,60002.0,60001.0,0.0891]
[1726663789415,0.33018262,60002.0,60001.0,0.0891]
[1726663790749,0.356332,60002.0,60001.0,0.0891]
[1726663790979,0.34283399,60002.0,60001.0,0.0891]
[1726663794216,0.34283399,60002.0,60001.0,0.089921]
[1726663794648,0.36898345,60002.0,60001.0,0.089921]
[1726663795337,0.70230545,60002.0,60001.0,0.089921]
[1726663796484,0.36898345,60002.0,60001.0,0.089921]
[1726663797844,0.01311932,60002.0,60001.0,0.089921]
[1726663798074,0.01311932,60002.0,60001.0,0.79093744]
[1726663798288,0.001642,60006.0,60005.0,0.170652]
[1726663798508,0.001642,60006.0,60005.0,0.55396028]
[1726663798701,0.01476132,60006.0,60005.0,0.97036106]
[1726663798997,0.001642,60006.0,60005.0,0.97036106]
[1726663799482,0.01476132,60006.0,60005.0,0.920362]
[1726663799709,0.00195909,60006.0,60005.0,0.920362]
[1726663799934,0.001642,60006.0,60005.0,0.920362]
[1726663800613,0.01476132,60006.0,60005.0,0.920362]
[1726663800823,0.00195909,60006.0,60005.0,0.920362]
[1726663801045,0.00295909,60006.0,60005.0,0.599057]
[1726663801539,0.00295909,60006.0,60005.0,0.932362]
[1726663801986,0.02878839,60006.0,60005.0,0.932362]
[1726663805708,0.02878839,60006.0,60005.0,1.03335577]
[1726663807574,0.002642,60006.0,60005.0,1.03335577]
[1726663811694,0.0287879,60006.0,60005.0,1.03335577]
[1726663812913,0.0287879,60006.0,60005.0,1.36666077]
[1726663813129,0.0287879,60006.0,60005.0,1.03335577]
[1726663813614,0.002642,60006.0,60005.0,1.72668413]
[1726663813858,0.002642,60006.0,60005.0,2.4944428]
[1726663814135,0.002642,60006.0,60005.0,2.54676476]
[1726663814357,0.001642,60012.0,60011.0,1.03777377]
[1726663814624,0.001642,60012.0,60011.0,1.71456913]
[1726663814843,0.001642,60012.0,60011.0,2.06674309]
[1726663815060,0.001642,60012.0,60011.0,1.73147109]
[1726663815325,0.001642,60012.0,60011.0,1.27830336]
[1726663815559,0.001642,60012.0,60011.0,0.587008]
[1726663815778,0.168275,60012.0,60011.0,0.0871]
[1726663816018,0.33187479,60012.0,60011.0,0.0831]
[1726663816262,0.44571136,60012.0,60011.0,0.0831]
[1726663816496,0.67898359,60012.0,60011.0,0.0951]
[1726663816757,1.01224959,60012.0,60011.0,0.0951]
[1726663816984,1.10734959,60012.0,60011.0,0.0951]
[1726663817194,1.10734959,60012.0,60011.0,0.012]
[1726663818775,0.499908,60011.0,60010.0,0.004]
[1726663818984,0.66296167,60011.0,60010.0,0.004]
[1726663819214,0.32968967,60011.0,60010.0,0.004]
[1726663819445,0.34829692,60012.0,60005.0,0.000821]
[1726663819446,0.01503092,60012.0,60011.0,0.83718]
[1726663819671,0.01503092,60012.0,60011.0,0.99103567]
[1726663819672,0.0144848,60012.0,60011.0,0.99103567]
[1726663819891,0.0144848,60012.0,60011.0,1.07275567]
[1726663820109,0.001642,60012.0,60011.0,1.07275567]
[1726663820318,0.002642,60012.0,60011.0,1.07275567]
[1726663820551,0.001642,60012.0,60011.0,1.07275567]
[1726663821241,0.02778493,60012.0,60011.0,1.07275567]
[1726663822180,0.02778493,60012.0,60011.0,1.08075567]
[1726663822421,0.02778493,60012.0,60011.0,0.9269]
[1726663824806,0.02778493,60012.0,60011.0,1.08075567]
[1726663825444,0.001642,60012.0,60011.0,1.08075567]
[1726663830904,0.001642,60012.0,60011.0,1.41402767]
[1726663831123,0.001642,60012.0,60011.0,1.08075567]
[1726663831341,0.001642,60012.0,60011.0,1.41402767]
[1726663831788,0.0277842,60012.0,60011.0,1.41402767]
[1726663832256,0.0277842,60012.0,60011.0,1.08075567]
[1726663833375,0.0277842,60012.0,60011.0,0.9269]
[1726663835417,0.0277842,60012.0,60011.0,1.260172]
[1726663836348,0.0277842,60012.0,60011.0,0.9269]
[1726663836797,0.0277842,60012.0,60011.0,1.41402767]
[1726663837042,0.001642,60012.0,60011.0,1.41402767]
[1726663840170,0.001642,60012.0,60011.0,1.36108816]
[1726663840635,0.001642,60012.0,60011.0,2.05350025]
[1726663840862,0.001642,60012.0,60011.0,1.82204893]
[1726663841302,0.001642,60012.0,60011.0,1.72222825]
[1726663841524,0.001642,60012.0,60011.0,1.82008186]
[1726663841774,0.001642,60012.0,60011.0,1.62452825]
[1726663842046,0.001642,60012.0,60011.0,1.52361209]
[1726663842507,0.001642,60012.0,60011.0,1.6234657]
[1726663843433,0.02778324,60012.0,60011.0,1.6234657]
[1726663843882,0.02778324,60012.0,60011.0,1.77726036]
[1726663844357,0.02778324,60012.0,60011.0,1.77719677]
[1726663844572,0.02778324,60012.0,60011.0,1.76919677]
[1726663844809,0.02778324,60012.0,60011.0,1.78319677]
[1726663845240,0.02778324,60012.0,60011.0,1.76919677]
[1726663846157,0.02778324,60012.0,60011.0,1.66930578]
[1726663846392,0.02778324,60012.0,60011.0,1.79616952]
[1726663846638,0.02778324,60012.0,60011.0,1.81016952]
[1726663847077,0.001642,60012.0,60011.0,1.81016952]
[1726663847527,0.001642,60012.0,60011.0,1.82904328]
[1726663847964,0.001642,60012.0,60011.0,1.81504328]
[1726663848387,0.001642,60012.0,60011.0,1.82904328]
[1726663848875,0.001642,60012.0,60011.0,1.80816952]
[1726663849078,0.001642,60012.0,60011.0,1.82704992]
[1726663850487,0.001642,60012.0,60011.0,1.70218618]
[1726663851918,0.001642,60012.0,60011.0,2.08430359]
[1726663852154,0.001642,60012.0,60011.0,1.95943985]
[1726663852393,0.001642,60012.0,60011.0,2.29271185]
[1726663852826,0.001642,60012.0,60011.0,1.99004796]
[1726663854612,0.001642,60012.0,60011.0,1.70218618]
[1726663854840,0.001642,60012.0,60011.0,1.27109996]
[1726663855332,0.001642,60012.0,60011.0,0.98281019]
[1726663856426,0.001642,60012.0,60011.0,1.31608219]
[1726663856692,0.001642,60012.0,60011.0,1.266172]
[1726663856918,0.001642,60012.0,60011.0,0.9329]
[1726663857165,0.001642,60012.0,60011.0,0.9189]
[1726663857388,0.001642,60012.0,60011.0,0.9329]
[1726663857804,0.001642,60012.0,60011.0,0.9189]
[1726663858027,0.001642,60012.0,60011.0,0.9319]
[1726663858538,0.001642,60012.0,60011.0,1.00676084]
[1726663859007,0.001642,60012.0,60011.0,1.34005808]
[1726663859227,0.001642,60012.0,60011.0,1.60262514]
[1726663859672,0.02778355,60012.0,60011.0,1.60262514]
[1726663860140,0.001642,60012.0,60011.0,1.60262514]
[1726663860378,0.001642,60012.0,60011.0,1.52773906]
[1726663860599,0.001642,60012.0,60011.0,1.60260287]
[1726663862204,0.001642,60012.0,60011.0,1.265172]
[1726663862428,0.001642,60012.0,60011.0,1.00669001]
[1726663862714,0.001642,60012.0,60011.0,0.9319]
[1726663863369,0.02778395,60012.0,60011.0,0.9319]
[1726663863601,0.02778395,60012.0,60011.0,1.26923461]
[1726663864278,0.001642,60012.0,60011.0,1.26923461]
[1726663864490,0.001642,60012.0,60011.0,1.29416461]
[1726663864940,0.001642,60012.0,60011.0,1.28116461]
[1726663865561,0.001642,60012.0,60011.0,1.1814446]
[1726663865988,0.001642,60012.0,60011.0,0.8571726]
[1726663866234,0.001642,60012.0,60011.0,0.62379317]
[1726663866693,0.00221881,60012.0,60011.0,1.28133717]
[1726663866909,0.001642,60012.0,60011.0,1.28133717]
[1726663867135,0.02778401,60012.0,60011.0,1.28174548]
[1726663869380,0.02778401,60012.0,60011.0,1.29374548]
[1726663869604,0.02778401,60012.0,60011.0,1.28174548]
[1726663870022,0.001642,60012.0,60011.0,1.29474548]
[1726663873187,0.02778402,60012.0,60011.0,1.29474548]
[1726663873895,0.02778402,60012.0,60011.0,1.52812212]
[1726663874114,0.02778402,60012.0,60011.0,1.63101328]
[1726663874115,0.001642,60012.0,60011.0,1.63101328]
[1726663874376,0.001642,60012.0,60011.0,1.96428528]
[1726663874594,0.001642,60012.0,60011.0,2.11412832]
[1726663874817,0.001642,60012.0,60011.0,1.78085632]
[1726663875036,0.001642,60012.0,60011.0,2.11412832]
[1726663876172,0.001642,60012.0,60011.0,2.11212832]
[1726663876868,0.001642,60012.0,60011.0,2.11382504]
[1726663877309,0.001642,60012.0,60011.0,2.11182504]
[1726663877529,0.001642,60012.0,60011.0,1.96206565]
[1726663877740,0.001642,60012.0,60011.0,2.11182504]
[1726663877969,0.001642,60012.0,60011.0,2.16466523]
[1726663878214,0.001642,60012.0,60011.0,2.16666523]
[1726663878429,0.001642,60012.0,60011.0,2.01690584]
[1726663879074,0.001642,60012.0,60011.0,2.16666523]
[1726663879292,0.001642,60012.0,60011.0,2.3297189]
[1726663879585,0.001642,60012.0,60011.0,2.6394822]
[1726663881586,0.001642,60012.0,60011.0,2.64197333]
[1726663882548,0.001642,60012.0,60011.0,2.67197333]
[1726663884529,0.001642,60012.0,60011.0,2.30269748]
[1726663890017,0.001642,60012.0,60011.0,3.2173257]
[1726663890268,0.001642,60012.0,60011.0,3.19866533]
[1726663890517,0.001642,60012.0,60011.0,3.18566533]
[1726663890767,0.001642,60012.0,60011.0,3.19966533]
[1726663891035,0.001642,60012.0,60011.0,3.18566533]
[1726663891529,0.001642,60012.0,60011.0,3.19966533]
[1726663895361,0.001642,60012.0,60011.0,3.04593398]
[1726663895615,0.001642,60012.0,60011.0,3.19966533]
[1726663896104,0.001642,60012.0,60011.0,2.71266198]
[1726663896347,0.001642,60012.0,60011.0,2.5550276]
[1726663896578,0.001642,60012.0,60011.0,2.21626613]
[1726663896824,0.001642,60012.0,60011.0,2.36999748]
[1726663898011,0.001642,60012.0,60011.0,2.3171762]
[1726663898250,0.001642,60012.0,60011.0,2.2871762]
[1726663898482,0.001642,60012.0,60011.0,2.2571762]
[1726663899399,0.001642,60012.0,60011.0,2.2871762]
[1726663900342,0.001642,60012.0,60011.0,2.3191762]
[1726663900792,0.0961,60032.0,60031.0,0.836902]
[1726663901036,0.0961,60032.0,60031.0,0.93781207]
[1726663901327,0.11567728,60032.0,60031.0,1.01953207]
[1726663902017,0.0961,60032.0,60031.0,1.01953207]
[1726663902246,0.0961,60032.0,60031.0,1.02453207]
[1726663903934,0.02777678,60033.0,60032.0,1.170042]
[1726663904162,0.001642,60033.0,60032.0,1.170042]
[1726663904383,0.001642,60033.0,60032.0,1.95137589]
[1726663904620,0.001642,60033.0,60032.0,1.85367568]
[1726663904833,0.001642,60033.0,60032.0,2.01672935]
[1726663905305,0.0039614,60046.0,60042.0,1.16985]
[1726663905530,0.0039614,60046.0,60042.0,1.83703802]
[1726663905781,0.0039614,60046.0,60042.0,2.17013802]
[1726663906527,0.0039614,60046.0,60042.0,2.23355802]
[1726663906747,0.0039614,60046.0,60042.0,2.23499574]
[1726663907642,0.0039614,60046.0,60042.0,2.33427949]
[1726663907861,0.0039614,60046.0,60042.0,2.34627949]
[1726663908075,0.0039614,60046.0,60042.0,2.33427949]
[1726663908296,0.0039614,60046.0,60042.0,2.34827949]
[1726663908548,0.0039614,60046.0,60042.0,2.41887765]
[1726663908814,0.001642,60057.0,60056.0,0.503533]
[1726663909058,0.001642,60057.0,60056.0,0.99960867]
[1726663909310,0.001642,60057.0,60056.0,1.74737267]
[1726663909554,0.001542,60057.0,60056.0,1.87937267]
[1726663910529,0.001542,60057.0,60056.0,1.54435067]
[1726663911027,0.001542,60057.0,60056.0,1.51435067]
[1726663911251,0.001542,60057.0,60056.0,1.351297]
[1726663912142,0.001542,60057.0,60056.0,1.365297]
[1726663914319,0.001542,60057.0,60056.0,1.367297]
[1726663914816,0.001542,60057.0,60056.0,1.365297]
[1726663915272,0.001542,60057.0,60056.0,1.367297]
[1726663915489,0.0039614,60064.0,60063.0,0.499474]
[1726663915736,0.0039614,60064.0,60063.0,0.65712967]
[1726663915981,0.0239859,60064.0,60063.0,0.73884967]
[1726663916243,0.0039614,60064.0,60063.0,0.73884967]
[1726663916534,0.0039614,60064.0,60063.0,1.07183267]
[1726663916786,0.0239859,60064.0,60063.0,1.07183267]
[1726663917037,0.0039614,60064.0,60063.0,1.07183267]
[1726663917485,0.0239859,60064.0,60063.0,1.07183267]
[1726663917968,0.0239859,60064.0,60063.0,1.08583267]
[1726663918481,0.0039614,60064.0,60063.0,1.08583267]
[1726663918972,0.0039614,60064.0,60063.0,0.75284967]
[1726663919242,0.0039614,60064.0,60063.0,0.09972]
[1726663919778,0.02398486,60064.0,60063.0,0.09972]
[1726663920009,0.02398486,60064.0,60063.0,0.599194]
[1726663920512,0.02398486,60064.0,60063.0,0.09972]
[1726663921007,0.02398486,60064.0,60063.0,0.08572]
[1726663921249,0.02398486,60064.0,60063.0,0.256211]
[1726663921498,0.02398486,60064.0,60063.0,0.08972]
[1726663921749,0.19047386,60064.0,60063.0,0.08972]
[1726663922000,0.02398486,60064.0,60063.0,0.08972]
[1726663923468,0.19047386,60064.0,60063.0,0.08972]
[1726663923700,0.02398486,60064.0,60063.0,0.08972]
[1726663924422,0.02480586,60064.0,60063.0,0.08972]
[1726663924687,0.02480586,60064.0,60063.0,0.256211]
[1726663925211,0.02480586,60064.0,60063.0,0.74284967]
[1726663926491,0.02480586,60064.0,60063.0,0.24337567]
[1726663926743,0.19129486,60064.0,60063.0,0.08972]
[1726663927005,1.44938253,60064.0,60063.0,0.08572]
[1726663927266,1.44938253,60064.0,60047.0,0.1]
[1726663927267,0.832457,60063.0,60062.0,0.004]
[1726663927516,0.832457,60063.0,60061.0,0.004]
[1726663927517,0.832472,60062.0,60061.0,0.004]
[1726663927804,1.165461,60062.0,60061.0,0.004]
[1726663928047,0.499483,60062.0,60061.0,0.004]
[1726663928541,0.832472,60062.0,60061.0,0.004]
[1726663930056,0.166494,60062.0,60061.0,0.004]
[1726663930554,0.52560587,60062.0,60061.0,0.08572]
[1726663930812,0.832472,60062.0,60061.0,0.08572]
[1726663931510,0.83331926,60062.0,60061.0,0.08572]
[1726663931811,1.16630826,60062.0,60061.0,0.08172]
[1726663932058,1.16630826,60062.0,60048.0,0.333062]
[1726663932059,0.333005,60059.0,60055.0,0.004]
[1726663932311,0.166511,60056.0,60055.0,0.004]
[1726663932832,0.50038026,60056.0,60055.0,0.004]
[1726663933080,0.50038026,60056.0,60054.0,0.004]
[1726663933081,0.83257,60055.0,60054.0,0.004]
[1726663933586,0.83341726,60055.0,60054.0,0.08572]
[1726663934095,0.16736126,60055.0,60054.0,0.08572]
[1726663934357,0.50038926,60055.0,60054.0,0.08572]
[1726663935120,0.16736126,60055.0,60054.0,0.08572]
[1726663935391,0.00084726,60055.0,60054.0,0.08572]
[1726663935641,0.00084726,60055.0,60054.0,0.585269]
[1726663935904,0.51886296,60063.0,60062.0,0.004]
[1726663936130,0.68191663,60063.0,60062.0,0.004]
[1726663936351,1.01490163,60063.0,60062.0,0.004]
[1726663937481,1.04102502,60063.0,60062.0,0.004]
[1726663937707,1.01490163,60063.0,60062.0,0.004]
[1726663939049,1.01490163,60063.0,60062.0,0.503483]
[1726663939050,0.01938696,60063.0,60062.0,0.503483]
[1726663939344,0.01938696,60063.0,60062.0,0.836472]
[1726663939559,0.0765,60065.0,60063.0,0.836457]
[1726663939789,0.0765,60065.0,60063.0,0.906297]
[1726663940010,0.0765,60065.0,60063.0,0.573314]
[1726663941110,0.0765,60065.0,60063.0,0.906297]
[1726663941332,0.000821,60066.0,60063.0,0.906297]
[1726663942038,0.000821,60066.0,60063.0,0.913297]
[1726663942535,0.000821,60066.0,60063.0,1.40433367]
[1726663942825,0.000821,60066.0,60063.0,1.43433367]
[1726663943034,0.000821,60066.0,60065.0,1.165402]
[1726663943259,0.000821,60066.0,60065.0,0.95173342]
[1726663943488,0.000821,60066.0,60065.0,0.90227]
[1726663943922,0.000821,60066.0,60065.0,0.573298]
[1726663944372,0.000821,60066.0,60065.0,0.240326]
[1726663944649,0.000821,60066.0,60065.0,0.07384]
[1726663945079,0.187434,60066.0,60065.0,0.07384]
[1726663945772,0.020951,60066.0,60065.0,0.07384]
[1726663946200,0.020951,60066.0,60065.0,0.240326]
[1726663946414,0.020951,60066.0,60065.0,0.246326]
[1726663946839,0.020951,60066.0,60065.0,0.240326]
[1726663947281,0.04707116,60066.0,60065.0,0.244326]
[1726663947506,0.020951,60066.0,60065.0,0.240326]
[1726663947951,0.020951,60066.0,60065.0,0.07384]
[1726663948315,0.020951,60066.0,60065.0,0.240326]
[1726663948516,0.020951,60066.0,60065.0,0.07384]
[1726663949271,0.020951,60066.0,60065.0,0.07884]
[1726663950352,0.020951,60066.0,60065.0,0.245326]
[1726663951615,0.020451,60066.0,60065.0,0.245326]
[1726663951815,0.020451,60066.0,60065.0,0.07884]
[1726663952647,0.186934,60066.0,60065.0,0.07884]
[1726663952853,0.020451,60066.0,60065.0,0.07884]
[1726663953266,0.020451,60066.0,60065.0,0.07384]
[1726663953677,0.020451,60066.0,60065.0,0.07584]
[1726663954468,0.020451,60066.0,60065.0,0.240326]
[1726663954894,0.020451,60066.0,60065.0,0.07384]
[1726663955706,0.020451,60066.0,60065.0,0.240326]
[1726663956105,0.020451,60066.0,60065.0,0.243326]
[1726663956330,0.020451,60066.0,60065.0,0.240326]
[1726663956903,0.020451,60066.0,60065.0,0.245326]
[1726663959291,0.020451,60066.0,60065.0,0.07884]
[1726663959528,0.020451,60066.0,60065.0,0.245326]
[1726663959766,0.186934,60066.0,60065.0,0.07884]
[1726663960233,0.519901,60066.0,60065.0,0.07884]
[1726663960477,1.54038867,60066.0,60065.0,0.005]
[1726663960658,1.87335567,60066.0,60065.0,0.005]
[1726663960923,1.54038867,60066.0,60065.0,0.005]
[1726663961144,1.54038867,60066.0,60059.0,0.004]
[1726663961145,0.8325,60060.0,60059.0,0.004]
[1726663961391,0.99632848,60060.0,60059.0,0.004]
[1726663961607,1.01560544,60060.0,60059.0,0.004]
[1726663962083,0.68260544,60060.0,60059.0,0.004]
[1726663962514,0.34960544,60060.0,60059.0,0.004]
[1726663962745,0.02005177,60060.0,60059.0,0.170502]
[1726663962968,0.04617434,60060.0,60059.0,0.836512]
[1726663963184,0.02005177,60060.0,60059.0,1.06000767]
[1726663963402,0.076721,60066.0,60065.0,0.166486]
[1726663963642,0.000321,60066.0,60065.0,0.170486]
[1726663963879,0.000321,60066.0,60065.0,0.07484]
[1726663964089,0.166804,60066.0,60065.0,0.07384]
[1726663964306,0.000321,60066.0,60065.0,0.07384]
[1726663964513,0.000321,60066.0,60065.0,0.07548]
[1726663965134,0.00117274,60066.0,60065.0,0.07548]
[1726663965783,0.16765574,60066.0,60065.0,0.07548]
[1726663966007,0.16765574,60066.0,60065.0,0.07948]
[1726663966434,0.50062274,60066.0,60065.0,0.07948]
[1726663966857,0.00117274,60066.0,60065.0,0.07948]
[1726663967086,0.16765574,60066.0,60065.0,0.07948]
[1726663967554,0.00117274,60066.0,60065.0,0.07548]
[1726663967770,0.00117274,60066.0,60065.0,0.07848]
[1726663968177,0.16765574,60066.0,60065.0,0.07848]
[1726663968823,0.00117274,60066.0,60065.0,0.07848]
[1726663969021,0.16765574,60066.0,60065.0,0.07848]
[1726663969691,0.19377567,60066.0,60065.0,0.07848]
[1726663971071,0.21293093,60066.0,60065.0,0.07848]
[1726663972773,0.04644793,60066.0,60065.0,0.07848]
[1726663974060,0.21293093,60066.0,60065.0,0.07848]
[1726663974909,0.04644793,60066.0,60065.0,0.07848]
[1726663975351,0.04644793,60066.0,60065.0,1.06456567]
[1726663975566,0.04644793,60066.0,60065.0,1.44724964]
[1726663975795,0.000321,60066.0,60065.0,1.47210563]
[1726663976058,0.000321,60066.0,60065.0,1.41426821]
[1726663976710,0.000321,60066.0,60065.0,1.13913363]
[1726663976923,0.000321,60066.0,60065.0,1.06456567]
[1726663977669,0.000321,60066.0,60065.0,1.13913363]
[1726663977897,0.000321,60066.0,60065.0,1.74706548]
[1726663978109,0.000321,60066.0,60065.0,1.41409348]
[1726663978346,0.000321,60066.0,60065.0,1.41109348]
[1726663978813,0.000321,60066.0,60065.0,1.74406548]
[1726663979065,0.000321,60066.0,60065.0,1.75206548]
[1726663979487,0.000321,60066.0,60065.0,1.67749752]
[1726663979697,0.000321,60066.0,60065.0,1.34452552]
[1726663979895,0.000321,60066.0,60065.0,1.41108935]
[1726663980156,0.000321,60066.0,60065.0,1.42832552]
[1726663980370,0.000321,60066.0,60065.0,1.56557918]
[1726663980589,0.000321,60066.0,60065.0,1.77406944]
[1726663981255,0.000321,60066.0,60065.0,1.93912311]
[1726663981485,0.000321,60066.0,60065.0,1.93712311]
[1726663981929,0.000321,60066.0,60065.0,1.93912311]
[1726663982386,0.000321,60066.0,60065.0,1.92612311]
[1726663982600,0.000321,60066.0,60065.0,1.94012311]
[1726663983015,0.000321,60066.0,60065.0,1.92412311]